bitfinex-derivatives/quotes_ETHF0:USTF0_20241228
["timestamp","ask_amount","ask_price","bid_price","bid_amount"]
[1735349730995,4.54486395,3325.4,3325.2,0.30116]
[1735349731196,4.54486395,3325.4,3325.1,2.29713755]
[1735349731503,1.0341,3325.4,3324.9,0.30119]
[1735349731703,1.0341,3325.4,3325.0,0.30118]
[1735349731905,1.0341,3325.4,3325.1,0.30117]
[1735349732302,3.51076395,3325.7,3325.3,3.2078]
[1735349732605,1.45017395,3325.7,3325.6,2.59826755]
[1735349732903,5.87813478,3326.1,3325.9,0.3011]
[1735349732904,2.87567714,3326.0,3325.9,0.3011]
[1735349733100,2.87567714,3326.0,3325.9,3.5089]
[1735349733300,2.87567714,3326.0,3325.9,5.80603755]
[1735349734506,0.505,3326.6,3325.9,5.50493755]
[1735349734702,0.505,3326.6,3326.5,2.29713755]
[1735349735806,0.505,3326.6,3326.5,2.59818755]
[1735349736001,0.505,3326.6,3326.5,2.29713755]
[1735349736706,0.505,3326.6,3326.5,2.59818755]
[1735349738705,0.505,3326.6,3326.5,5.80598755]
[1735349741108,0.5039,3327.1,3326.9,0.301]
[1735349741301,1.054,3327.0,3326.9,0.301]
[1735349741502,1.054,3327.0,3326.9,2.59813755]
[1735349741810,1.054,3327.0,3326.9,2.29713755]
[1735349742604,1.054,3327.0,3326.9,1.46823755]
[1735349743910,1.054,3327.0,3326.9,1.76924755]
[1735349744713,1.054,3327.0,3326.9,1.46823755]
[1735349747108,1.054,3327.0,3326.9,1.76924755]
[1735349747304,1.054,3327.0,3326.9,1.46823755]
[1735349748410,0.30103,3326.7,3326.6,2.29713755]
[1735349748612,0.30103,3326.7,3326.5,3.2078]
[1735349749216,1.35501,3327.0,3326.6,0.30103]
[1735349749513,0.30102,3326.9,3326.7,2.29713755]
[1735349750415,0.30102,3326.8,3326.7,2.29713755]
[1735349750816,1.054,3327.0,3326.7,2.29713755]
[1735349751006,1.355,3327.0,3326.7,2.59815755]
[1735349751211,0.30102,3326.8,3326.7,2.29713755]
[1735349751416,1.054,3327.0,3326.7,2.29713755]
[1735349751607,1.054,3327.0,3326.7,2.59815755]
[1735349751806,1.054,3327.0,3326.9,0.30101]
[1735349753709,1.054,3327.0,3326.7,2.29713755]
[1735349753910,0.30104,3326.6,3326.4,2.29713755]
[1735349754117,0.30107,3326.2,3326.1,2.29713755]
[1735349754312,3.50887,3326.2,3326.1,2.29713755]
[1735349754514,3.2078,3326.2,3325.8,2.59823755]
[1735349754717,3.2078,3326.2,3325.8,2.29713755]
[1735349754913,3.50888,3326.2,3326.0,0.30109]
[1735349755308,3.50888,3326.2,3325.8,2.29713755]
[1735349755513,3.50888,3326.2,3325.9,0.3011]
[1735349757214,3.2078,3326.2,3325.9,0.3011]
[1735349757517,0.30109,3326.0,3325.8,2.29713755]
[1735349757714,0.5184,3325.9,3325.8,2.29713755]
[1735349757912,1.0313,3325.9,3325.8,2.29713755]
[1735349759013,1.0313,3325.9,3325.8,2.59824755]
[1735349759413,1.0313,3325.9,3325.8,2.29713755]
[1735349759715,1.0313,3325.9,3325.8,2.59824755]
[1735349762215,0.5129,3325.9,3325.8,2.59824755]
[1735349762522,3.2078,3326.2,3326.1,0.30108]
[1735349762723,3.2078,3326.2,3326.1,2.59821755]
[1735349764717,3.2078,3326.7,3326.1,2.59821755]
[1735349764930,3.2078,3326.7,3326.6,2.59817755]
[1735349765220,3.2078,3327.2,3326.6,2.29713755]
[1735349765418,3.2078,3327.2,3327.1,0.30099]
[1735349766816,0.5373,3327.8,3327.3,0.30097]
[1735349766817,3.50874,3327.7,3327.3,0.30097]
[1735349767017,0.30095,3327.6,3327.4,2.29713755]
[1735349767220,4.57494,3327.7,3327.4,2.29713755]
[1735349767431,4.57494,3327.7,3327.4,2.59810755]
[1735349767620,3.7476,3327.7,3327.4,2.29713755]
[1735349767922,3.2078,3328.1,3327.9,0.30092]
[1735349768117,3.2078,3328.1,3327.9,2.59805755]
[1735349768322,4.64671886,3328.0,3327.9,2.59805755]
[1735349769119,4.64671886,3328.0,3327.9,0.30092]
[1735349769524,4.64671886,3328.0,3327.9,2.59805755]
[1735349769729,0.5334,3328.4,3328.2,0.30089]
[1735349769923,4.64671886,3328.5,3328.3,2.29713755]
[1735349770127,4.64671886,3328.5,3328.4,0.30088]
[1735349770928,7.04808408,3329.1,3328.4,5.0]
[1735349771122,5.1881736,3329.5,3329.2,0.3008]
[1735349771325,5.1881736,3329.5,3329.3,1.51079]
[1735349771525,5.1881736,3329.5,3329.4,2.59792755]
[1735349772434,4.6594736,3329.5,3329.4,2.59792755]
[1735349772630,3.2078,3330.1,3330.0,0.30073]
[1735349775128,3.2078,3330.1,3329.8,0.30074]
[1735349775431,3.2078,3330.1,3329.7,0.30076]
[1735349775629,3.2078,3330.1,3329.8,0.30075]
[1735349775931,3.2078,3330.1,3329.6,2.29713755]
[1735349776132,3.7282,3330.2,3330.1,0.30072]
[1735349776533,0.5204,3330.2,3330.1,0.30072]
[1735349777133,3.2078,3331.0,3330.6,0.30067]
[1735349777335,3.2078,3331.0,3330.7,0.30066]
[1735349777835,3.2078,3331.0,3330.7,2.29713755]
[1735349778126,3.2078,3331.0,3330.9,0.30065]
[1735349780129,0.30065,3330.9,3330.5,0.30068]
[1735349780531,0.30065,3330.9,3330.4,2.29713755]
[1735349780532,3.50845,3331.0,3330.4,2.29713755]
[1735349780840,3.50845,3331.0,3330.6,0.30068]
[1735349781133,0.30065,3330.9,3330.4,2.29713755]
[1735349781438,0.30065,3330.9,3330.5,0.30068]
[1735349783433,3.50844,3331.0,3330.4,2.29713755]
[1735349783633,3.50844,3331.0,3330.7,0.30066]
[1735349783834,3.2078,3331.0,3330.9,0.30065]
[1735349787336,1.0709,3331.2,3331.1,0.30063]
[1735349787636,0.5447,3331.2,3331.1,2.59776755]
[1735349788432,0.5447,3331.2,3331.1,2.59395257]
[1735349790043,3.2078,3331.5,3331.4,0.3006]
[1735349790236,3.2078,3331.5,3331.4,2.59773755]
[1735349790736,0.51,3331.9,3331.8,0.30057]
[1735349790935,0.51,3331.9,3331.8,2.59770755]
[1735349792236,0.51,3331.9,3331.8,3.80670755]
[1735349793043,3.2078,3332.6,3331.9,0.30056]
[1735349793240,0.5012,3332.5,3332.4,2.29713755]
[1735349793447,0.5012,3332.5,3332.4,2.59764755]
[1735349795939,0.5521,3332.9,3332.4,2.29713755]
[1735349796143,3.7515,3333.2,3332.8,2.29713755]
[1735349796344,3.7515,3333.2,3333.1,2.59758755]
[1735349796539,4.05194,3333.2,3333.1,2.29713755]
[1735349796844,3.7515,3333.2,3332.8,3.50613755]
[1735349797042,0.5378,3333.1,3332.9,0.30047]
[1735349797641,0.5378,3333.1,3332.8,3.50613755]
[1735349797837,3.7515,3333.2,3332.8,3.50613755]
[1735349798146,3.7515,3333.2,3333.1,2.29713755]
[1735349799147,4.05194,3333.2,3333.1,2.29713755]
[1735349799349,3.7515,3333.2,3333.1,2.29713755]
[1735349800152,4.05194,3333.2,3333.1,2.29713755]
[1735349800353,3.7515,3333.2,3333.1,2.29713755]
[1735349801454,4.05194,3333.2,3333.1,2.29713755]
[1735349802452,3.7515,3333.2,3333.1,2.29713755]
[1735349803251,4.05194,3333.2,3333.1,2.29713755]
[1735349804251,3.7515,3333.2,3332.8,2.29713755]
[1735349804460,0.30047,3332.9,3332.8,2.29713755]
[1735349805555,0.30047,3332.9,3332.8,1.46853755]
[1735349805855,3.7515,3333.2,3332.5,2.29713755]
[1735349806064,3.7515,3333.2,3331.2,3.2078]
[1735349806065,3.2078,3332.7,3331.2,3.2078]
[1735349806360,0.30056,3331.9,3331.8,2.29713755]
[1735349806768,0.84596,3331.9,3331.8,2.29713755]
[1735349808157,0.5454,3331.9,3331.8,2.29713755]
[1735349808357,0.84596,3331.9,3331.8,2.29713755]
[1735349810859,0.5454,3331.9,3331.8,2.29713755]
[1735349811059,3.2078,3332.0,3331.9,0.30056]
[1735349812366,3.2078,3332.0,3331.8,2.59769755]
[1735349813362,3.2078,3332.4,3331.9,2.29713755]
[1735349813564,3.2078,3332.4,3332.2,2.29713755]
[1735349814267,3.2078,3332.4,3332.2,2.59766755]
[1735349814567,3.2078,3332.4,3332.3,0.30052]
[1735349817264,3.2078,3332.4,3332.2,2.59766755]
[1735349817471,0.3005,3332.6,3332.2,2.59766755]
[1735349817662,0.3005,3332.6,3332.5,2.29713755]
[1735349823274,0.84028,3332.8,3332.6,0.30049]
[1735349823481,0.5398,3332.8,3332.6,0.30049]
[1735349823770,0.5398,3332.8,3332.5,2.29713755]
[1735349823970,0.3005,3332.6,3332.5,2.29713755]
[1735349824880,0.5398,3332.8,3332.5,2.29713755]
[1735349825069,0.5398,3332.8,3332.7,0.30049]
[1735349825273,0.84028,3332.8,3332.6,0.30049]
[1735349825474,0.84028,3332.8,3332.7,0.30049]
[1735349825673,0.5398,3332.8,3332.7,0.30049]
[1735349826173,3.7232,3332.9,3332.8,0.30048]
[1735349826380,3.7232,3332.9,3332.8,2.59761755]
[1735349827472,0.5154,3332.9,3332.8,2.59761755]
[1735349827668,3.45455597,3333.1,3333.0,0.30046]
[1735349828072,0.5418,3333.3,3332.8,5.50493755]
[1735349828283,0.5418,3333.3,3333.2,2.59757755]
[1735349828973,4.02313,3333.4,3333.3,0.30043]
[1735349828974,3.2078,3333.4,3333.3,0.30043]
[1735349829373,3.45455597,3333.5,3333.2,2.29713755]
[1735349829676,3.75497597,3333.5,3333.3,0.30043]
[1735349830075,4.50185597,3333.8,3333.2,2.29713755]
[1735349830274,0.30041,3333.6,3333.4,0.30042]
[1735349830875,3.75495597,3333.7,3333.5,0.30041]
[1735349831083,3.75495597,3333.7,3333.2,2.29713755]
[1735349831084,0.30042,3333.5,3333.3,0.30043]
[1735349832077,0.30042,3333.5,3333.4,0.30042]
[1735349832273,3.45455597,3333.6,3333.5,0.30042]
[1735349832480,3.45455597,3333.6,3333.5,2.59755755]
[1735349833478,3.45455597,3333.7,3333.6,0.30041]
[1735349833673,3.45455597,3333.7,3333.6,2.59754755]
[1735349833875,3.45455597,3333.7,3333.6,5.80534755]
[1735349834576,0.5185,3334.1,3333.6,5.50493755]
[1735349834776,0.5185,3334.1,3334.0,2.29713755]
[1735349835475,0.5185,3334.1,3334.0,2.59750755]
[1735349835680,0.5185,3334.1,3334.0,2.29713755]
[1735349836477,0.5185,3334.1,3334.0,2.59750755]
[1735349836778,0.5185,3334.1,3334.0,2.29713755]
[1735349836973,3.97305597,3334.1,3334.0,2.29713755]
[1735349837281,3.45455597,3334.1,3334.0,5.80530755]
[1735349837778,3.45455597,3334.1,3334.0,6.82810755]
[1735349838481,3.45455597,3334.4,3334.0,6.52773755]
[1735349838679,3.45455597,3334.4,3334.3,2.29713755]
[1735349839778,3.75488597,3334.5,3334.3,2.29713755]
[1735349840678,0.30033,3334.5,3334.3,2.29713755]
[1735349841282,3.98965597,3334.6,3334.3,2.29713755]
[1735349841583,3.98965597,3334.6,3334.3,2.59747755]
[1735349842484,3.45455597,3334.6,3334.5,0.30033]
[1735349842687,3.45455597,3334.6,3334.4,0.30033]
[1735349843081,3.75486597,3334.7,3334.4,0.30033]
[1735349843281,3.75486597,3334.7,3334.6,2.29713755]
[1735349843781,3.45455597,3334.7,3334.3,2.29713755]
[1735349843977,0.30033,3334.4,3334.3,2.29713755]
[1735349844489,0.30033,3334.5,3334.3,2.59747755]
[1735349845987,3.45455597,3334.6,3334.3,2.59747755]
[1735349846188,0.30033,3334.4,3334.3,2.29713755]
[1735349847092,0.30033,3334.5,3334.3,2.59747755]
[1735349848392,3.45455597,3334.6,3334.3,2.29713755]
[1735349848594,3.45455597,3334.7,3334.5,0.30033]
[1735349848792,3.75486597,3334.7,3334.5,0.30033]
[1735349849094,3.75486597,3334.7,3334.3,2.29713755]
[1735349849392,3.75486597,3334.7,3334.5,0.30032]
[1735349849593,3.99695597,3334.8,3334.3,2.29713755]
[1735349849794,3.99695597,3334.8,3334.4,0.30033]
[1735349849995,0.30033,3334.5,3334.4,0.30033]
[1735349850285,3.99695597,3334.8,3334.4,0.30033]
[1735349850491,0.30032,3334.6,3334.4,0.30033]
[1735349850690,0.30031,3334.7,3334.5,0.30033]
[1735349851588,0.5424,3334.8,3334.6,2.29713755]
[1735349851787,0.5424,3334.8,3334.7,0.30031]
[1735349852088,0.8427,3334.8,3334.7,0.30031]
[1735349852595,0.5424,3334.8,3334.7,0.30031]
[1735349852785,0.5424,3334.8,3334.6,2.29713755]
[1735349852786,0.5225,3334.9,3334.8,0.3003]
[1735349853385,0.5225,3334.9,3334.8,3.5081]
[1735349854285,0.5387,3335.1,3334.8,3.50809]
[1735349854489,1.0497,3335.1,3335.0,2.29713755]
[1735349854892,0.3003,3334.8,3334.7,3.50413755]
[1735349856186,0.30029,3335.0,3334.7,1.5073]
[1735349856390,0.30029,3335.0,3334.9,2.29713755]
[1735349859189,1.0497,3335.1,3334.9,2.29713755]
[1735349859395,1.34998,3335.1,3334.9,2.59741755]
[1735349859592,1.34998,3335.1,3335.0,0.30028]
[1735349859791,1.34998,3335.1,3334.9,2.59742755]
[1735349859792,0.30028,3335.0,3334.9,2.59742755]
[1735349859992,0.30028,3335.0,3334.9,2.29713755]
[1735349863192,0.30242638,3335.0,3334.9,2.29713755]
[1735349865391,0.00214638,3335.0,3334.6,2.29713755]
[1735349865593,0.00214638,3335.0,3334.3,2.29713755]
[1735349865594,0.30033,3334.4,3334.3,2.29713755]
[1735349867795,5.0,3334.4,3333.3,1.207]
[1735349868097,5.0,3334.4,3333.6,2.29713755]
[1735349868098,0.3004,3333.7,3333.6,2.29713755]
[1735349869793,1.3318,3333.7,3333.6,2.29713755]
[1735349870390,4.78635597,3333.7,3333.6,2.29713755]
[1735349870593,4.48595597,3333.7,3333.3,3.50413755]
[1735349870794,0.30042,3333.4,3333.3,3.50413755]
[1735349870993,0.30042,3333.4,3333.3,2.29713755]
[1735349871395,0.30042,3333.4,3333.1,4.4148]
[1735349871396,0.30044,3333.2,3333.1,3.2078]
[1735349871892,3.45455597,3333.5,3333.1,3.2078]
[1735349872098,3.45455597,3333.5,3333.4,2.59755755]
[1735349872998,3.99035597,3334.0,3333.8,0.30038]
[1735349873196,3.45455597,3334.0,3333.9,2.59751755]
[1735349873497,3.75492597,3334.0,3333.9,2.29713755]
[1735349874294,0.30037,3334.0,3333.9,2.29713755]
[1735349876492,3.2078,3334.2,3333.9,2.29713755]
[1735349876693,3.45455597,3334.3,3334.2,0.30035]
[1735349876694,3.15418597,3334.3,3334.2,0.30035]
[1735349876991,0.38617321,3334.3,3334.2,2.59748755]
[1735349877197,4.59409598,3334.5,3334.4,0.30033]
[1735349877400,4.59409598,3334.5,3334.4,3.50813]
[1735349877600,4.59409598,3334.5,3334.4,5.80526755]
[1735349878195,0.00214638,3335.0,3334.4,5.50493755]
[1735349878396,0.00214638,3335.0,3334.9,2.59742755]
[1735349878706,0.00214638,3335.0,3334.9,3.17262755]
[1735349878995,0.00214638,3335.0,3334.9,2.87233755]
[1735349880404,0.00214638,3335.0,3334.9,2.29713755]
[1735349880604,0.30242638,3335.0,3334.9,3.50413755]
[1735349880799,0.00214638,3335.0,3334.9,3.50413755]
[1735349881209,0.30242638,3335.0,3334.9,3.50413755]
[1735349881901,0.00214638,3335.0,3334.9,3.80442755]
[1735349882904,0.30242638,3335.0,3334.9,1.207]
[1735349883508,0.53964638,3335.0,3334.8,3.2078]
[1735349883710,0.84659,3334.9,3334.8,3.2078]
[1735349884008,0.5463,3334.9,3334.7,1.207]
[1735349884208,0.30031,3334.7,3334.6,2.29713755]
[1735349884423,0.30033,3334.5,3334.4,1.207]
[1735349884911,0.30033,3334.4,3334.3,2.29713755]
[1735349885113,0.83203,3334.4,3334.3,2.29713755]
[1735349885509,0.30034,3334.3,3334.2,1.207]
[1735349886511,4.89443598,3334.3,3334.2,1.207]
[1735349887414,0.30034,3334.3,3334.2,1.207]
[1735349888312,0.30036,3334.1,3334.0,2.29713755]
[1735349889006,0.83426,3334.1,3334.0,2.29713755]
[1735349892620,0.30036,3334.1,3334.0,2.29713755]
[1735349898421,0.30036,3334.1,3334.0,2.83343755]
[1735349898623,0.30036,3334.1,3334.0,4.04543755]
[1735349900325,0.30036,3334.1,3334.0,3.50913755]
[1735349900718,0.5317,3334.4,3334.0,3.50913755]
[1735349900918,5.17239598,3334.6,3334.5,0.30033]
[1735349901119,4.59409598,3334.6,3334.5,0.30033]
[1735349902532,0.57714638,3335.0,3334.4,0.5263]
[1735349902722,0.00214638,3335.0,3334.9,2.59742755]
[1735349902919,0.00214638,3335.0,3334.9,3.80942755]
[1735349903325,0.00214638,3335.0,3334.9,3.50913755]
[1735349903629,0.30242638,3335.0,3334.9,1.212]
[1735349903824,0.00214638,3335.0,3334.9,3.80942755]
[1735349906427,0.00214638,3335.0,3334.7,3.2078]
[1735349906634,0.30242638,3335.0,3334.8,0.30029]
[1735349907128,0.00214638,3335.0,3334.6,3.50913755]
[1735349907424,0.00214638,3335.0,3334.9,2.59742755]
[1735349909831,0.00214638,3335.0,3334.9,0.30029]
[1735349910633,0.3003,3334.8,3334.6,3.80944755]
[1735349910829,0.5657,3334.7,3334.6,3.80944755]
[1735349911130,0.5657,3334.7,3334.6,2.29713755]
[1735349911326,0.86601,3334.7,3334.6,3.50913755]
[1735349911733,0.5657,3334.7,3334.6,3.50913755]
[1735349911935,0.30029,3334.9,3334.7,0.3003]
[1735349912134,0.30242638,3335.0,3334.7,0.3003]
[1735349912634,0.00214638,3335.0,3334.9,0.30029]
[1735349913035,0.00214638,3335.0,3334.6,3.50913755]
[1735349913534,0.30243638,3335.0,3334.7,0.3003]
[1735349913722,0.30243638,3335.0,3334.6,3.50913755]
[1735349914022,0.00214638,3335.0,3334.7,0.30031]
[1735349914221,0.00214638,3335.0,3334.8,0.30029]
[1735349914729,0.30242638,3335.0,3334.8,0.30029]
[1735349915135,0.30242638,3335.0,3334.6,3.50913755]
[1735349915136,0.30031,3334.7,3334.6,2.29713755]
[1735349917534,0.00214638,3335.0,3333.9,5.50493755]
[1735349917835,0.00214638,3335.0,3333.9,1.212]
[1735349917836,0.30037,3334.0,3333.9,1.212]
[1735349918334,0.5576,3334.2,3333.9,1.212]
[1735349918538,0.30037,3334.1,3333.9,1.212]
[1735349918741,0.5833,3334.0,3333.9,1.212]
[1735349918933,0.5833,3334.0,3333.9,1.51238]
[1735349923338,0.5833,3334.0,3333.9,1.212]
[1735349924640,0.5833,3334.0,3333.9,1.51238]
[1735349929849,0.5576,3334.2,3333.9,1.212]
[1735349930152,0.5576,3334.2,3334.1,0.30036]
[1735349930342,0.5754,3334.4,3333.9,6.71693755]
[1735349930646,0.5754,3334.4,3334.3,0.30034]
[1735349931645,0.5754,3334.4,3333.9,1.51237]
[1735349931646,0.30037,3334.1,3333.9,1.51237]
[1735349931841,1.1258,3334.0,3333.9,1.51237]
[1735349933550,4.89444598,3334.3,3333.9,3.50913755]
[1735349933852,4.59409598,3334.3,3334.2,0.30035]
[1735349935152,5.72529598,3334.4,3334.0,1.1585]
[1735349935350,0.30035,3334.3,3334.2,0.30035]
[1735349936350,4.59409598,3334.3,3334.2,0.30035]
[1735349937349,3.50703358,3334.3,3334.2,0.30035]
[1735349938850,3.50703358,3334.4,3334.3,0.30034]
[1735349939558,3.50703358,3334.4,3334.3,0.86694]
[1735349940252,3.50703358,3334.6,3334.3,0.5666]
[1735349940454,3.50703358,3334.6,3334.5,2.59746755]
[1735349941753,0.85149,3334.9,3334.7,0.3003]
[1735349941952,0.85149,3334.9,3334.8,1.207]
[1735349942350,0.5512,3334.9,3334.8,1.207]
[1735349942752,0.5512,3334.9,3334.8,1.5073]
[1735349942953,4.07958,3335.0,3334.9,0.30029]
[1735349942954,3.7793,3335.0,3334.9,0.30029]
[1735349944254,3.2078,3335.0,3334.9,0.30029]
[1735349944459,3.2078,3335.0,3334.9,3.16042755]
[1735349946553,3.50703358,3335.3,3335.2,0.30026]
[1735349946753,3.50703358,3335.3,3335.2,2.59739755]
[1735349947560,9.95548478,3335.4,3335.2,2.59739755]
[1735349948957,9.65523478,3335.4,3335.3,0.30025]
[1735349950060,8.45735507,3335.4,3335.3,0.30025]
[1735349951357,3.7771,3335.4,3335.3,0.30025]
[1735349951559,0.5693,3335.4,3335.3,0.30025]
[1735349951759,4.68025507,3335.5,3335.4,0.30024]
[1735349952560,3.50986733,3335.5,3335.4,0.30024]
[1735349953968,3.50986733,3335.5,3335.4,5.30024]
[1735349954163,5.87813478,3335.9,3335.4,7.29713755]
[1735349954472,4.68019059,3336.2,3336.1,0.30018]
[1735349954771,4.68019059,3336.2,3336.1,2.59731755]
[1735349954960,4.68019059,3336.2,3336.1,3.80431755]
[1735349956168,1.83900015,3336.2,3336.1,8.80431755]
[1735349956374,11.9315607,3337.0,3336.1,3.50413755]
[1735349956375,0.5553,3337.0,3336.1,3.50413755]
[1735349956570,0.5553,3337.0,3336.9,2.59724755]
[1735349956766,0.5553,3337.0,3336.9,7.01204755]
[1735349957462,0.6039,3337.3,3337.2,0.30008]
[1735349957765,1.1702,3337.6,3337.2,2.29713755]
[1735349957970,1.1702,3337.6,3337.5,0.30006]
[1735349958166,1.1702,3337.6,3337.5,2.59719755]
[1735349959771,0.6014,3337.6,3337.5,2.59719755]
[1735349959974,0.594,3338.0,3337.5,2.29713755]
[1735349960172,1.1689,3338.0,3337.9,2.59715755]
[1735349960373,1.1689,3338.0,3337.9,3.50313755]
[1735349961070,1.1689,3338.0,3337.9,3.80315755]
[1735349961669,3.2078,3338.5,3337.9,3.50313755]
[1735349961870,0.5749,3338.4,3338.0,0.30001]
[1735349962067,1.747,3338.4,3338.0,0.30001]
[1735349962471,1.747,3338.4,3337.9,1.206]
[1735349962666,1.747,3338.4,3338.3,2.29713755]
[1735349962867,0.3,3338.1,3338.0,2.29713755]
[1735349963977,1.747,3338.4,3338.0,2.29713755]
[1735349964183,1.747,3338.4,3338.3,2.29713755]
[1735349964681,1.747,3338.4,3338.3,2.59711755]
[1735349966579,1.1689,3338.4,3338.3,2.59711755]
[1735349966887,0.5749,3338.4,3338.3,2.59711755]
[1735349967084,0.6067,3338.8,3338.7,0.29995]
[1735349967287,0.6067,3338.8,3338.7,3.80308755]
[1735349967788,0.6067,3338.8,3338.7,3.50313755]
[1735349968782,3.2078,3339.6,3338.7,3.50313755]
[1735349968975,3.58468606,3340.4,3339.5,2.29713755]
[1735349968976,1.18,3339.7,3339.5,2.29713755]
[1735349969177,1.18,3339.7,3339.6,3.80300755]
[1735349969578,0.6137,3339.7,3339.6,3.80300755]
[1735349969983,0.6137,3339.7,3339.6,3.50313755]
[1735349971181,0.6137,3339.7,3339.0,2.29713755]
[1735349971394,0.29991,3339.1,3339.0,1.206]
[1735349971688,0.29993,3338.9,3338.8,3.50313755]
[1735349972988,0.29992,3339.1,3338.8,3.50313755]
[1735349973286,0.29992,3339.1,3339.0,2.29713755]
[1735349975493,1.1851,3339.5,3339.0,2.29713755]
[1735349975684,1.1851,3339.5,3339.4,2.29713755]
[1735349975879,1.1851,3339.5,3339.4,2.59701755]
[1735349976287,0.29984,3339.9,3339.7,0.29986]
[1735349976587,0.29984,3340.0,3339.8,2.29713755]
[1735349976894,1.45072,3340.1,3339.9,0.29984]
[1735349977192,1.1509,3340.1,3339.9,0.29984]
[1735349977782,1.1509,3340.1,3339.8,2.29713755]
[1735349978188,1.1509,3340.1,3340.0,0.29983]
[1735349979095,0.5688,3340.1,3340.0,0.29983]
[1735349979496,0.5849,3340.5,3340.4,0.29979]
[1735349979790,0.5849,3340.5,3340.4,2.59692755]
[1735349979990,0.5849,3340.5,3340.4,3.80192755]
[1735349980290,3.2078,3340.6,3340.4,3.50213755]
[1735349980487,3.2078,3340.6,3340.1,2.29713755]
[1735349980488,0.29981,3340.2,3340.1,2.29713755]
[1735349980791,3.2078,3340.6,3340.1,2.29713755]
[1735349980985,0.29981,3340.3,3340.1,2.29713755]
[1735349981189,0.29981,3340.3,3340.1,2.59695755]
[1735349981887,0.29981,3340.2,3340.1,2.29713755]
[1735349982588,0.29981,3340.3,3340.1,2.59695755]
[1735349982791,0.29981,3340.3,3340.1,2.29713755]
[1735349982988,0.29981,3340.2,3340.1,2.29713755]
[1735349984087,3.95727,3340.6,3340.1,2.29713755]
[1735349984088,3.2078,3340.6,3340.1,2.29713755]
[1735349984292,0.29979,3340.5,3340.4,2.29713755]
[1735349987187,3.50758,3340.6,3340.4,2.29713755]
[1735349987691,3.50758,3340.6,3340.4,2.59692755]
[1735349987692,3.2078,3340.6,3340.4,2.59692755]
[1735349988190,3.2078,3340.6,3340.5,0.29979]
[1735349988393,0.88585,3340.9,3340.6,0.29978]
[1735349988591,0.88585,3340.9,3340.1,2.29713755]
[1735349988592,0.5861,3340.9,3340.1,2.29713755]
[1735349988795,3.2078,3340.5,3339.5,3.2078]
[1735349988996,0.29987,3339.6,3339.5,3.2078]
[1735349989398,0.29989,3339.4,3339.2,3.50213755]
[1735349989795,3.2078,3339.6,3339.2,3.50213755]
[1735349990001,3.2078,3339.6,3339.2,3.80203755]
[1735349990195,0.29989,3339.3,3339.2,3.50213755]
[1735349990397,3.2078,3339.6,3339.2,3.50213755]
[1735349990591,3.50767,3339.6,3339.5,2.29713755]
[1735349990900,0.29987,3339.6,3339.5,2.29713755]
[1735349991093,0.29986,3339.7,3339.5,2.29713755]
[1735349991297,0.29986,3339.7,3339.5,2.59700755]
[1735349991492,0.566,3339.8,3339.5,2.29713755]
[1735349991695,0.566,3339.8,3339.7,0.29986]
[1735349992406,0.5937,3339.9,3339.8,0.29985]
[1735349992597,0.5937,3339.9,3339.5,2.29713755]
[1735349992803,0.5937,3339.9,3339.8,2.59698755]
[1735349993002,0.5937,3339.9,3339.8,2.29713755]
[1735349993303,0.89354,3339.9,3339.8,2.29713755]
[1735349993502,0.5937,3339.9,3339.8,2.29713755]
[1735349993703,0.89354,3339.9,3339.8,2.29713755]
[1735349993910,0.5937,3339.9,3339.8,2.59698755]
[1735349994203,0.89354,3339.9,3339.8,2.29713755]
[1735349996199,0.89354,3339.9,3339.2,1.205]
[1735349996200,0.29985,3339.8,3339.6,0.29987]
[1735349997909,0.89354,3339.9,3339.6,0.29987]
[1735349998204,0.5937,3339.9,3339.6,0.29986]
[1735349998402,0.5937,3339.9,3339.7,0.29985]
[1735349998602,0.89354,3339.9,3339.3,0.29989]
[1735349998804,0.29986,3339.8,3339.6,2.29713755]
[1735349998999,0.5937,3339.9,3339.6,2.29713755]
[1735349999404,0.29986,3339.7,3339.6,2.29713755]
[1735349999594,0.29986,3339.7,3339.2,1.205]
[1735349999595,5.5937,3339.9,3339.2,2.29713755]
[1735349999800,0.29989,3339.3,3339.2,2.29713755]
[1735350001206,4.09157,3339.6,3339.2,2.59702755]
[1735350001407,4.09157,3339.6,3339.3,0.89159]
[1735350002203,3.50767,3339.6,3339.3,0.89159]
[1735350002403,3.2078,3339.6,3339.5,2.29713755]
[1735350002698,0.29987,3339.6,3339.5,2.29713755]
[1735350003810,0.29992,3339.1,3338.9,3.50213755]
[1735350004003,0.5962,3339.5,3338.9,3.50213755]
[1735350004207,0.29988,3339.5,3339.3,2.59702755]
[1735350005006,0.29987,3339.6,3339.3,2.59702755]
[1735350005205,0.29986,3339.7,3339.4,0.29988]
[1735350005508,0.29986,3339.7,3339.3,2.29713755]
[1735350005509,0.29988,3339.4,3339.3,2.29713755]
[1735350006008,3.2078,3339.5,3339.4,0.29988]
[1735350006202,3.2078,3339.5,3339.4,0.91018]
[1735350006402,3.2078,3339.5,3339.4,1.51238]
[1735350007002,6.17796478,3340.1,3339.4,1.2125]
[1735350007202,6.17796478,3340.1,3339.8,2.29713755]
[1735350007408,5.87813478,3340.1,3339.9,0.29983]
[1735350007608,5.87813478,3340.1,3340.0,0.6103]
[1735350007800,0.89602,3340.2,3340.0,0.6103]
[1735350008512,0.29982,3340.2,3340.0,0.6103]
[1735350008707,0.29982,3340.2,3340.0,0.91013]
[1735350009121,7.34790408,3340.2,3340.0,0.91013]
[1735350009321,7.04808408,3340.2,3340.1,0.29982]
[1735350009517,7.04808408,3340.2,3340.0,0.91013]
[1735350010615,7.04808408,3340.2,3340.1,2.29713755]
[1735350010912,7.34789408,3340.2,3340.1,2.29713755]
[1735350011619,8.4682707,3340.2,3340.1,2.29713755]
[1735350011926,0.29982,3340.1,3340.0,0.6103]
[1735350012219,8.4682807,3340.2,3340.0,0.6103]
[1735350012416,8.1684607,3340.2,3340.0,0.6103]
[1735350012722,8.1684607,3340.2,3340.1,0.29982]
[1735350014317,9.35120122,3340.2,3340.1,0.29982]